bitfinex-derivatives/quotes_ETHF0:USTF0_20250404
["timestamp","ask_amount","ask_price","bid_price","bid_amount"]
[1743728500275,2.59439637,1812.5,1812.4,1.10392]
[1743728500479,0.00828637,1812.5,1812.4,1.10392]
[1743728500879,0.00828637,1812.5,1812.4,2.52522]
[1743728506682,0.00828637,1812.5,1812.4,5.02522]
[1743728507685,2.3503,1812.7,1812.4,5.02522]
[1743728507686,2.3503,1812.7,1812.6,1.1038]
[1743728507885,2.3503,1812.7,1812.6,13.9166]
[1743728508085,1.82315,1813.2,1813.1,1.1035]
[1743728508586,1.1035,1813.1,1813.0,2.47994]
[1743728508986,1.8126,1813.1,1813.0,2.47994]
[1743728509685,0.7091,1813.1,1813.0,2.47994]
[1743728510287,1.8126,1813.1,1813.0,2.47994]
[1743728510487,0.7091,1813.1,1813.0,2.47994]
[1743728510684,3.25336637,1813.2,1813.1,1.1035]
[1743728510685,0.72798637,1813.2,1813.1,1.1035]
[1743728510887,0.00828637,1813.2,1813.1,3.2337]
[1743728512086,1.11172637,1813.2,1813.1,3.2337]
[1743728512488,0.00828637,1813.2,1813.1,3.2337]
[1743728512986,1.11172637,1813.2,1813.1,3.2337]
[1743728513581,0.00828637,1813.2,1813.1,3.2337]
[1743728515084,0.00828637,1813.2,1813.1,9.2037]
[1743728515491,0.00828637,1813.2,1813.1,11.7037]
[1743728517891,2.34012001,1813.3,1813.2,1.10344]
[1743728518088,2.9307,1813.9,1813.8,1.10307]
[1743728519390,0.6923,1813.9,1813.8,4.31087]
[1743728519587,0.6923,1813.9,1813.8,1.10307]
[1743728519985,1.79531,1813.9,1813.7,2.5581]
[1743728520188,1.4772,1813.8,1813.7,2.5581]
[1743728521587,0.6923,1813.9,1813.8,1.10307]
[1743728521887,3.21851,1813.9,1813.8,2.50117]
[1743728522796,2.1155,1813.9,1813.8,2.50117]
[1743728523291,2.1155,1813.9,1813.6,3.2078]
[1743728523597,1.10319,1813.6,1813.5,5.97]
[1743728523786,1.10319,1813.6,1813.4,1.10327]
[1743728523787,1.10338,1813.3,1813.2,1.1034]
[1743728523985,5.25812,1813.6,1813.0,9.48457]
[1743728523986,6.39142,1813.4,1813.0,1.4031]
[1743728524197,1.10356,1813.0,1812.9,0.00828637]
[1743728524895,2.62346,1813.0,1812.9,0.00828637]
[1743728525695,8.33126,1813.0,1812.9,0.00828637]
[1743728526400,2.75941,1812.7,1812.3,1.10397]
[1743728526594,1.10392,1812.4,1812.3,1.10397]
[1743728526795,1.10388,1812.5,1812.4,1.1039]
[1743728527097,1.4315,1812.5,1812.2,2.50711]
[1743728527311,1.10398,1812.3,1812.2,2.50711]
[1743728527496,1.10398,1812.3,1812.2,2.51539637]
[1743728527697,1.10398,1812.4,1812.2,2.51539637]
[1743728527998,1.4315,1812.3,1812.2,2.51539637]
[1743728528399,0.00828637,1812.5,1812.4,1.10392]
[1743728529498,0.00828637,1812.5,1812.4,4.31172]
[1743728530201,0.00828637,1812.5,1812.4,5.79402]
[1743728532592,1e-08,1812.5,1812.4,6.51122]
[1743728533989,1e-08,1812.5,1812.4,5.79402]
[1743728534191,1.10392,1812.4,1812.3,1.10395]
[1743728534392,2.52402,1812.4,1812.3,1.10395]
[1743728534697,2.1823,1812.4,1812.3,1.10395]
[1743728535497,1e-08,1812.5,1812.4,1.10392]
[1743728535695,1e-08,1812.5,1812.4,4.31172]
[1743728536097,1e-08,1812.5,1812.4,5.72132]
[1743728550613,1e-08,1812.5,1812.4,11.69132]
[1743728553316,0.75340001,1812.5,1812.4,11.69132]
[1743728553516,1.45220001,1812.5,1812.4,11.69132]
[1743728554822,2.91300001,1812.5,1812.4,11.69132]
[1743728555023,0.69880001,1812.5,1812.4,11.69132]
[1743728556224,1.80266001,1812.5,1812.4,5.97]
[1743728556519,3.26346001,1812.5,1812.4,1.10392]
[1743728556722,1.10392,1812.4,1812.3,2.48194]
[1743728557015,2.56472,1812.4,1812.3,2.48194]
[1743728557217,3.28822,1812.4,1812.3,2.48194]
[1743728558323,0.7235,1812.4,1812.3,2.48194]
[1743728558819,1.10398,1812.3,1812.2,3.21608637]
[1743728559115,1.10419,1812.0,1811.9,1.10419]
[1743728559422,1.10423,1811.9,1811.8,2.49276]
[1743728559725,3.96133,1811.9,1811.8,1.10426]
[1743728560319,2.8571,1811.9,1811.8,1.10426]
[1743728560522,2.8571,1811.9,1811.8,2.61276]
[1743728561021,3.96133,1811.9,1811.8,2.61276]
[1743728561415,2.8571,1811.9,1811.8,2.61276]
[1743728562324,3.633,1812.1,1812.0,1.10417]
[1743728562623,5.1215,1812.1,1812.0,1.10417]
[1743728562824,6.22561,1812.1,1812.0,1.10417]
[1743728563323,5.1215,1812.1,1811.9,1.5085]
[1743728563825,6.22564,1812.1,1811.9,2.61268]
[1743728564029,6.22564,1812.1,1812.0,1.4193]
[1743728564213,6.22564,1812.1,1812.0,2.52347]
[1743728564523,1e-08,1812.5,1812.2,1.10405]
[1743728564524,3.20780001,1812.5,1812.2,1.10405]
[1743728564724,1e-08,1812.5,1812.4,1.10392]
[1743728565821,1e-08,1812.5,1812.4,2.52322]
[1743728574843,3.29576001,1812.5,1812.4,1.10392]
[1743728575046,10.86470001,1812.5,1812.4,1.10392]
[1743728575538,10.86471001,1812.5,1812.3,1.10393]
[1743728575739,1.4539,1812.4,1812.3,1.10393]
[1743728576345,1.4539,1812.4,1812.3,2.59063]
[1743728578251,1e-08,1812.5,1812.4,1.10392]
[1743728578546,1e-08,1812.5,1812.4,5.79842]
[1743728581549,1e-08,1812.5,1812.4,2.59062]
[1743728582049,1.44460001,1812.5,1812.4,2.59062]
[1743728582455,1e-08,1812.5,1812.4,2.59062]
[1743728582645,1e-08,1812.5,1812.4,5.79842]
[1743728583546,1e-08,1812.5,1812.4,2.59062]
[1743728583948,1.10386001,1812.5,1812.4,2.59062]
[1743728584148,1e-08,1812.5,1812.4,2.59062]
[1743728585455,1.43830001,1812.5,1812.4,2.59062]
[1743728586356,2.54216001,1812.5,1812.4,2.59062]
[1743728586553,1.10392,1812.4,1812.3,5.97]
[1743728586748,4.19812,1812.4,1812.1,1.10407]
[1743728586943,1.10412,1812.1,1812.0,1.10413]
[1743728587554,2.54242,1812.1,1812.0,1.10413]
[1743728588849,1.4383,1812.1,1812.0,1.10413]
[1743728589555,2.54241,1812.1,1812.0,1.10413]
[1743728590252,1.4383,1812.1,1812.0,1.10413]
[1743728590660,2.54241,1812.1,1812.0,1.10413]
[1743728590847,1.4383,1812.1,1812.0,1.10413]
[1743728591044,2.54241,1812.1,1812.0,1.10413]
[1743728591254,1.10417,1812.0,1811.9,2.63018]
[1743728591555,1.5035,1812.0,1811.9,2.63018]
[1743728592753,1.10411,1812.1,1812.0,1.10411]
[1743728592957,1.10411,1812.1,1812.0,2.58521]
[1743728593160,1.10411,1812.1,1812.0,1.4811]
[1743728593457,2.60761,1812.1,1812.0,1.4811]
[1743728593658,1.10417,1812.0,1811.9,1.10421]
[1743728593858,2.56347,1812.0,1811.9,1.10421]
[1743728594057,2.56347,1812.0,1811.9,2.62721]
[1743728594257,2.56347,1812.0,1811.9,2.62723]
[1743728595055,2.56347,1812.0,1811.9,1.523]
[1743728595355,1.10429,1811.8,1811.7,0.00828637]
[1743728595857,1.10429,1811.8,1811.7,1.11263637]
[1743728596058,2.56359,1811.8,1811.7,1.53128637]
[1743728596247,2.56359,1811.8,1811.7,2.63563637]
[1743728597450,3.8996,1812.2,1812.1,1.10411]
[1743728597656,1.10411,1812.1,1812.0,1.10411]
[1743728597857,1.10411,1812.1,1812.0,2.51501]
[1743728598058,5.4299,1812.2,1812.1,1.10411]
[1743728598260,5.4299,1812.2,1812.1,2.51501]
[1743728598565,3.634,1812.2,1812.1,2.51501]
[1743728598757,4.73805,1812.2,1812.1,2.51501]
[1743728599761,3.634,1812.2,1812.1,2.51501]
[1743728600465,4.73805,1812.2,1812.1,2.51501]
[1743728600659,3.634,1812.2,1812.1,2.51501]
[1743728601058,2.47982,1812.3,1812.1,2.51496]
[1743728601257,6.11382,1812.3,1812.2,2.59595]
[1743728601561,1.3758,1812.3,1812.2,2.59595]
[1743728601757,1e-08,1812.5,1812.4,1.10392]
[1743728602463,1e-08,1812.5,1812.4,5.04422]
[1743728602661,1e-08,1812.5,1812.4,5.77522]
[1743728605762,1.23971363,1812.6,1812.4,14.24522]
[1743728605968,0.7018,1813.2,1813.1,1.1035]
[1743728606265,3.2078,1813.4,1813.3,1.10338]
[1743728606471,1.80507,1813.5,1813.3,1.10338]
[1743728606660,2.2173,1813.5,1813.4,2.49531]
[1743728606854,0.7063,1813.6,1813.5,1.10325]
[1743728607161,0.71458637,1813.6,1813.5,2.49525]
[1743728607767,0.00828637,1813.6,1813.5,2.49525]
[1743728609466,0.00828637,1813.6,1813.5,3.92735]
[1743728613771,0.00828637,1813.6,1813.5,1.392]
[1743728613966,0.00828637,1813.6,1813.5,2.49525]
[1743728614772,1.11147637,1813.6,1813.5,1.392]
[1743728615873,1.82647637,1813.6,1813.5,1.392]
[1743728616465,1.10329,1813.5,1813.3,0.00828637]
[1743728616674,1.38,1813.5,1813.3,2.49361637]
[1743728617167,1.10331,1813.4,1813.3,2.49361637]
[1743728617871,1.10331,1813.4,1813.3,1.39028637]
[1743728618174,6.81111,1813.4,1813.3,0.00828637]
[1743728618368,8.19221,1813.4,1813.3,1e-08]
[1743728619179,9.33721,1813.4,1813.3,1e-08]
[1743728620183,11.83721,1813.4,1813.3,1e-08]
[1743728621173,9.33721,1813.4,1813.3,1e-08]
[1743728626280,5.69221,1813.4,1813.3,1e-08]
[1743728626580,9.33021,1813.4,1813.3,1.43020001]
[1743728627376,4.31111,1813.4,1813.3,2.53358001]
[1743728627580,1.10331,1813.4,1813.3,2.53358001]
[1743728627981,1.10331,1813.4,1813.3,1.43020001]
[1743728628174,1.10331,1813.4,1813.3,1e-08]
[1743728628372,3.19711,1813.4,1813.3,1e-08]
[1743728628982,6.40491,1813.4,1813.3,1e-08]
[1743728629682,8.90491,1813.4,1813.3,1e-08]
[1743728630077,8.99617812,1813.4,1813.3,1e-08]
[1743728631286,8.99619736,1813.4,1813.3,1e-08]
[1743728634684,8.99622884,1813.4,1813.3,1e-08]
[1743728636087,8.99628886,1813.4,1813.3,1e-08]
[1743728639189,8.99628555,1813.4,1813.3,1e-08]
[1743728640586,8.99628242,1813.4,1813.3,1e-08]
[1743728641793,8.99629131,1813.4,1813.3,1e-08]
[1743728643196,8.99632084,1813.4,1813.3,1e-08]
[1743728645293,1.10374,1812.7,1812.6,0.7262]
[1743728645500,1.1038,1812.6,1812.5,0.7559]
[1743728645998,1.10405,1812.2,1812.1,0.6966]
[1743728646199,4.73605,1812.2,1812.1,0.6966]
[1743728646997,4.73605,1812.2,1812.1,1.80071]
[1743728647397,4.74432637,1812.3,1812.2,1.10405]
[1743728647697,4.74432637,1812.3,1812.1,1.80067]
[1743728647698,1.10405,1812.2,1812.1,1.80067]
[1743728647898,1.10405,1812.2,1812.1,0.6966]
[1743728648401,1.10405,1812.2,1812.1,2.1463]
[1743728649692,1.10411,1812.1,1812.0,0.00828637]
[1743728649887,1.10429,1811.8,1811.7,0.7263]
[1743728650086,4.73729,1811.8,1811.7,0.7263]
[1743728650997,4.73729,1811.8,1811.7,1.4642]
[1743728651492,4.73729,1811.8,1811.6,0.00828637]
[1743728651493,1.10435,1811.7,1811.6,0.00828637]
[1743728651699,5.79675,1811.7,1811.6,0.00828637]
[1743728652189,5.79675,1811.7,1811.6,1e-08]
[1743728652785,8.29675,1811.7,1811.6,1e-08]
[1743728652989,8.38799227,1811.7,1811.6,1e-08]
[1743728657193,8.38800861,1811.7,1811.6,1e-08]
[1743728658106,1.10465,1811.2,1811.1,1.4315]
[1743728658398,7.94745,1811.2,1811.1,1.4315]
[1743728659403,1.10472,1811.1,1811.0,0.00828637]
[1743728659695,2.56082,1811.1,1811.0,0.00828637]
[1743728659995,2.56082,1811.1,1810.9,1.4663]
[1743728659996,4.04730529,1811.1,1810.8,0.7525]
[1743728660204,4.31264,1810.9,1810.8,0.7525]
[1743728660396,7.94864,1810.9,1810.8,0.7525]
[1743728660896,1.10496,1810.7,1810.6,2.1967]
[1743728661196,4.31276,1810.7,1810.6,2.20498637]
[1743728661899,4.31276,1810.7,1810.6,1.47458637]
[1743728664796,1.1052,1810.3,1810.2,0.7381]
[1743728664998,4.7402,1810.3,1810.2,0.7381]
[1743728665500,4.7402,1810.3,1810.2,1.84337]
[1743728665801,4.7402,1810.3,1810.2,0.7381]
[1743728666002,4.7402,1810.3,1810.2,2.1509]
[1743728669302,6.2569,1810.3,1810.2,2.1509]
[1743728672706,1.10539,1810.0,1809.9,1.10541]
[1743728672909,1.10545,1809.9,1809.8,2.51776]
[1743728673307,1.10545,1809.9,1809.8,1.4123]
[1743728674009,1.10545,1809.9,1809.8,2.9365]
[1743728678502,1.10544,1810.0,1809.9,1.10545]
[1743728678705,1.10544,1810.0,1809.9,2.48755]
[1743728681297,4.75066637,1810.1,1810.0,1.10539]
[1743728681506,4.75066637,1810.1,1810.0,2.51659]
[1743728682610,4.75166637,1810.1,1810.0,2.51659]
[1743728683005,3.64628637,1810.1,1810.0,2.51659]
[1743728683206,4.75161637,1810.1,1810.0,2.51659]
[1743728684813,4.75161637,1810.1,1810.0,1.4112]
[1743728685713,4.75161637,1810.1,1810.0,2.51659]
[1743728686610,4.75161637,1810.1,1810.0,1.4112]
[1743728687114,4.75161637,1810.1,1810.0,2.51659]
[1743728687314,4.75161637,1810.1,1810.0,1.4112]
[1743728687814,6.20711637,1810.1,1810.0,1.4112]
[1743728688004,4.75161637,1810.1,1810.0,1.4112]
[1743728688514,4.75161637,1810.1,1810.0,2.51659]
[1743728688818,4.75161637,1810.1,1810.0,1.4112]
[1743728689114,6.14551637,1810.1,1810.0,1.4112]
[1743728690307,1.10545,1809.9,1809.8,2.51776]
[1743728690507,1.10545,1809.9,1809.8,2.1979]
[1743728690709,1.10551,1809.8,1809.7,7.07553]
[1743728691415,1.10551,1809.8,1809.7,2.58853]
[1743728691711,2.54431,1809.8,1809.7,2.58853]
[1743728693216,1.10551,1809.8,1809.7,2.58853]
[1743728693819,2.54431,1809.8,1809.7,2.58853]
[1743728694519,1.10551,1809.8,1809.7,2.58853]
[1743728695616,2.61781,1809.8,1809.7,2.58853]
[1743728698625,1.8462,1809.9,1809.8,1.10551]
[1743728698818,1.1055,1809.9,1809.8,2.61971]
[1743728699322,4.74342,1810.0,1809.9,1.10545]
[1743728699516,4.74342,1810.0,1809.9,1.79495]
[1743728699711,4.74342,1810.0,1809.9,3.30915]
[1743728699921,4.74342,1810.0,1809.9,2.2037]
[1743728700324,4.74342,1810.0,1809.9,3.30915]
[1743728700522,4.74342,1810.0,1809.9,2.2037]
[1743728700724,4.74342,1810.0,1809.9,3.30915]
[1743728700925,6.22482,1810.0,1809.9,3.30915]
[1743728702828,0.00828637,1810.1,1810.0,1.10539]
[1743728703024,0.00828637,1810.1,1810.0,6.41989]
[1743728703229,1.4814,1810.3,1810.2,1.10527]
[1743728703428,1.10526,1810.3,1810.2,1.10522]
[1743728703928,2.53076,1810.3,1810.2,2.54682]
[1743728709831,1.4255,1810.3,1810.2,2.54682]
[1743728710022,2.5307,1810.3,1810.2,3.26362]
[1743728711332,1.11346637,1810.4,1810.3,1.1052]
[1743728711530,0.00828637,1810.4,1810.3,8.5548]
[1743728711729,0.00828637,1810.4,1810.3,11.0548]
[1743728715832,0.00828637,1810.4,1810.3,8.5548]
[1743728716032,1.11342637,1810.4,1810.3,7.0752]
[1743728717228,2.53952637,1810.4,1810.3,7.0752]
[1743728717430,2.53952637,1810.4,1810.3,5.97]
[1743728717734,6.17652637,1810.4,1810.3,5.97]
[1743728719634,6.17652637,1810.4,1810.3,7.0752]
[1743728720335,6.17652637,1810.4,1810.3,8.6035]
[1743728720835,0.00828637,1810.4,1810.3,11.1035]
[1743728721039,0.00828637,1810.4,1810.3,11.8231]
[1743728721233,1e-08,1810.4,1810.3,15.4601]
[1743728723639,1e-08,1810.4,1810.3,14.3549]
[1743728724635,1.4401,1811.0,1810.3,14.3549]
[1743728724840,4.3931,1811.3,1810.3,14.3549]
[1743728724841,0.7561,1811.3,1810.9,3.2078]
[1743728725141,2.2595,1811.3,1811.0,8.8433]
[1743728725335,1.5034,1811.3,1811.1,1.476]
[1743728725838,1.5034,1811.3,1811.2,5.97]
[1743728726642,0.00828637,1811.4,1811.2,5.97]
[1743728726940,0.00828637,1811.4,1811.3,1.476]
[1743728727140,0.00828637,1811.4,1811.3,7.446]
[1743728727341,0.00828637,1811.4,1811.3,9.946]
[1743728727542,3.636,1811.9,1811.3,13.1538]
[1743728727840,1.3816,1811.8,1811.4,6.7071]
[1743728728033,1.3816,1811.8,1811.5,1.4931]
[1743728728730,1.38988637,1811.8,1811.5,1.4931]
[1743728728935,1.38988637,1811.8,1811.6,3.2078]
[1743728729136,0.00828637,1811.8,1811.7,7.4631]
[1743728729633,0.00828637,1811.8,1811.7,9.9631]
[1743728731537,0.00828637,1811.8,1811.7,7.4631]
[1743728733345,0.00828637,1811.8,1811.7,5.97]
[1743728733938,0.00828637,1811.8,1811.5,5.97]
[1743728734151,3.64228637,1811.8,1811.4,3.2078]
[1743728734342,1.5021,1811.7,1811.4,3.2078]
[1743728734637,0.7562,1811.6,1811.4,3.2078]
[1743728734838,1.5021,1811.5,1811.4,3.2078]
[1743728736341,0.00828637,1811.8,1811.4,5.7078]
[1743728736543,1.5021,1811.7,1811.5,1.4246]
[1743728736839,2.8635,1811.7,1811.5,1.4246]
[1743728737644,1.3614,1811.7,1811.5,1.4246]
[1743728737942,1.3614,1811.7,1811.6,3.2078]
[1743728738343,1.3614,1811.7,1811.6,13.1304]
[1743728740645,0.00828637,1811.8,1811.6,13.1304]
[1743728740846,0.00828637,1811.8,1811.7,0.7031]
[1743728741150,0.00828637,1811.8,1811.7,8.2628]
[1743728742044,0.00828637,1811.8,1811.7,8.9871]
[1743728742250,0.8986,1812.0,1811.7,14.9571]
[1743728742547,0.8986,1812.0,1811.9,3.2078]
[1743728742954,0.6191,1812.0,1811.9,5.7078]
[1743728744850,0.00828637,1812.1,1811.9,11.6778]
[1743728745049,0.00828637,1812.1,1812.0,5.0715]
[1743728745349,1.4229,1812.4,1812.0,5.0715]
[1743728745538,1.4229,1812.4,1812.3,3.2078]
[1743728751456,1.4229,1812.4,1812.2,0.00828637]
[1743728751652,0.7569,1812.3,1812.2,0.00828637]
[1743728756445,0.7569,1812.3,1812.2,1.44008637]
[1743728757254,0.73288637,1812.5,1812.2,4.70148637]
[1743728757460,0.00828637,1812.5,1812.4,3.2078]
[1743728757658,3.8774,1812.6,1812.4,5.7078]
[1743728757855,1.389,1813.0,1812.4,7.57595357]
[1743728758054,1.389,1813.0,1812.7,3.2078]
[1743728758254,1.389,1813.0,1812.8,1.5215]
[1743728761257,0.708,1812.9,1812.7,3.2078]
[1743728761455,1.4319,1812.8,1812.7,3.2078]
[1743728763861,1.4319,1812.8,1812.5,3.2078]
[1743728767560,6.8398,1812.7,1812.2,0.00828637]
[1743728767862,3.2078,1812.5,1812.2,0.00828637]
[1743728768058,6.4488,1812.4,1812.2,0.00828637]
[1743728768258,1.3895,1812.3,1812.2,0.00828637]
[1743728772560,0.7311,1812.4,1812.2,3.21608637]
[1743728772867,3.632,1812.9,1812.3,1.4138]
[1743728773063,1.4034,1812.6,1812.3,2.1424]
[1743728773264,1.4034,1812.6,1812.4,1.4138]
[1743728774760,2.1386,1812.6,1812.4,1.4138]
[1743728774960,2.1386,1812.6,1812.2,3.96328637]
[1743728775164,1.4656,1812.5,1812.2,3.21608637]
[1743728776560,4.6734,1812.5,1812.2,3.21608637]
[1743728776960,1.3842,1812.4,1812.2,3.21608637]
[1743728777465,1.3842,1812.4,1812.3,1.4943]
[1743728777768,1.3842,1812.4,1812.3,2.1836]
[1743728777967,0.7253,1812.5,1812.3,2.1836]
[1743728778169,0.7253,1812.5,1812.4,1.4943]
[1743728778672,0.7253,1812.5,1812.2,3.90928637]
[1743728778871,1.3842,1812.4,1812.3,3.2078]
[1743728779764,1.3842,1812.4,1812.2,2.19578637]
[1743728780661,1.3842,1812.4,1812.3,1.4737]
[1743728780868,1.3842,1812.4,1812.3,4.6815]
[1743728781067,1.3842,1812.4,1812.3,1.4737]
[1743728783370,1.3842,1812.4,1812.3,4.6815]
[1743728785674,1.3842,1812.4,1812.3,3.2078]
[1743728789476,1.3842,1812.4,1812.2,0.00828637]
[1743728790880,3.2078,1812.3,1811.8,3.2078]
[1743728791176,3.2078,1812.1,1811.4,3.2078]
[1743728791381,3.2078,1811.9,1811.3,1.4911]
[1743728791678,5.8432,1811.8,1811.3,1.4911]
[1743728791879,1.4086,1811.7,1811.3,1.4911]
[1743728792081,0.7114,1811.6,1811.4,0.00828637]
[1743728792279,1.4086,1811.5,1811.4,0.00828637]
[1743728796080,6.14607,1811.5,1811.4,0.00828637]
[1743728796279,1.10474,1811.1,1810.8,3.2078]
[1743728796478,0.763,1811.0,1810.4,6.8408]
[1743728796675,2.76225,1810.8,1810.1,3.2078]
[1743728796879,1.10512,1810.5,1810.1,3.2078]
[1743728797184,1.4692,1810.4,1809.9,4.6472]
[1743728797383,1.4692,1810.4,1810.1,3.2078]
[1743728797582,1.4692,1810.4,1810.1,3.21608637]
[1743728798183,1.4692,1810.4,1810.2,1.5075]
[1743728798386,2.57436,1810.4,1810.2,1.5075]
[1743728798587,1.4692,1810.4,1810.2,1.5075]
[1743728798986,2.57435,1810.4,1810.1,3.21608637]
[1743728799186,2.1834,1810.4,1810.1,3.21608637]
[1743728799389,3.28855,1810.4,1810.1,3.21608637]
[1743728800089,2.1834,1810.4,1810.1,3.21608637]
[1743728800289,1.10523,1810.3,1810.1,3.21608637]
[1743728800584,2.52147,1810.2,1810.1,3.21608637]
[1743728801480,5.0592,1810.2,1809.8,3.2078]
[1743728801686,1.10545,1809.9,1809.8,3.2078]
[1743728801882,1.10551,1809.8,1809.6,1.4639]
[1743728802086,2.55197,1809.7,1809.5,3.2078]
[1743728802286,2.55197,1809.7,1809.3,3.2078]
[1743728802486,1.4464,1809.7,1809.3,4.6717]
[1743728802684,1.10565,1809.6,1809.4,1.4639]
[1743728802890,1.10569,1809.5,1809.4,1.4639]
[1743728803289,1.10567,1809.6,1809.4,1.4639]
[1743728803887,1.10563,1809.6,1809.4,1.4639]
[1743728804085,1.4464,1809.7,1809.4,1.4639]
[1743728804293,1.10569,1809.6,1809.4,1.4639]
[1743728804492,1.10563,1809.6,1809.4,1.4639]
[1743728805093,1.10569,1809.5,1809.4,1.4639]
[1743728806888,1.10568,1809.6,1809.4,1.4639]
[1743728807086,1.10569,1809.5,1809.4,1.4639]
[1743728808091,1.4787,1809.7,1809.4,1.4639]
[1743728808290,1.1055,1809.9,1809.5,3.2078]
[1743728808484,1.10557,1809.7,1809.6,1.4986]
[1743728809001,1.10575,1809.4,1809.3,3.21608637]
[1743728809184,1.10575,1809.4,1809.3,0.00828637]
[1743728809386,1.11402637,1809.5,1809.3,0.00828637]
[1743728809593,1.11402637,1809.5,1809.3,3.21608637]
[1743728809989,1.10575,1809.4,1809.3,3.21608637]
[1743728810196,1.11402637,1809.5,1809.3,3.21608637]
[1743728810485,1.11402637,1809.5,1809.4,1.4079]
[1743728811395,1.11397637,1809.5,1809.4,1.4079]
[1743728811603,0.00828637,1809.5,1809.4,1.4079]
[1743728811797,0.00828637,1809.5,1809.4,2.1235]
[1743728812696,0.00828637,1809.5,1809.4,4.6235]
[1743728817606,0.00828637,1809.5,1809.4,10.5935]
[1743728818208,0.00828637,1809.5,1809.4,11.2898]
[1743728818401,2.5326,1809.9,1809.4,11.2898]
[1743728818601,2.5326,1809.9,1809.6,3.2078]
[1743728818802,2.5326,1809.9,1809.7,1.5078]
[1743728819104,2.53255,1809.9,1809.7,7.4778]
[1743728819299,2.53255,1809.9,1809.8,1.4525]
[1743728820005,1.4271,1809.9,1809.8,1.4525]
[1743728820206,2.53255,1809.9,1809.8,1.4525]
[1743728820505,0.00828637,1810.0,1809.8,1.4525]
[1743728820799,0.00828637,1810.0,1809.8,16.7743]
[1743728821004,1.5156,1810.4,1809.9,8.8806]
[1743728821303,1.5156,1810.4,1810.1,3.2078]
[1743728821508,1.5156,1810.4,1810.2,1.4525]
[1743728822000,0.00828637,1810.5,1810.3,3.2078]
[1743728822307,0.00828637,1810.5,1810.4,7.3482]
[1743728823007,5.9699,1811.0,1810.4,7.3482]
[1743728823008,3.2078,1811.2,1810.4,13.5012]
[1743728823303,2.63192,1811.1,1810.7,3.2078]
[1743728823505,2.63192,1811.1,1810.8,1.3782]
[1743728823808,1.5272,1811.1,1810.9,1.10484]
[1743728824005,1.5272,1811.1,1810.8,8.45305]
[1743728824204,1.5272,1811.1,1810.9,1.10482]
[1743728824699,1.5272,1811.1,1811.0,1.10478]
[1743728825706,1.5272,1811.1,1811.0,2.58048]
[1743728827504,0.00542033,1811.2,1811.1,1.10472]
[1743728827710,0.00542033,1811.2,1811.1,4.31252]
[1743728828808,0.00542033,1811.2,1811.1,1.10472]
[1743728829206,0.00542033,1811.2,1811.1,4.31252]
[1743728829407,1.4091,1811.4,1811.3,1.10459]
[1743728829605,1.4741,1811.8,1811.7,1.10435]
[1743728829810,2.8656,1811.8,1811.7,1.10435]
[1743728831009,2.8656,1811.8,1811.6,4.32045637]
[1743728831215,2.8656,1811.8,1811.7,1.10435]
[1743728832307,1.3915,1811.8,1811.7,2.61885]
[1743728832507,1.3915,1811.8,1811.7,1.10435]
[1743728833206,1.3915,1811.8,1811.6,0.00828637]
[1743728833412,1.4009,1811.7,1811.6,1.11269637]
[1743728833907,2.8564,1811.7,1811.6,1.11269637]
[1743728836512,2.152,1811.7,1811.6,1.11269637]
[1743728836700,3.664,1812.1,1812.0,1.10417]
[1743728837109,0.7312,1812.2,1812.1,1.10411]
[1743728837706,3.678,1812.6,1812.5,1.10386]
[1743728838810,63.5358,1813.0,1812.9,1.10362]
[1743728839011,67.2118,1813.0,1812.9,1.10362]
[1743728839311,66.52,1813.0,1812.9,1.10362]
[1743728840307,3.9255,1813.0,1812.9,1.10362]
[1743728840911,4.6269,1813.0,1812.9,1.10362]
[1743728841210,8.93826,1813.0,1812.9,1.10362]
[1743728842311,1.10362,1812.9,1812.8,0.00828637]
[1743728842512,2.58022,1812.9,1812.8,0.00828637]
[1743728842706,5.08022,1812.9,1812.8,0.00828637]
[1743728844608,5.08022,1812.9,1812.8,1.11196637]
[1743728844609,3.9766,1812.9,1812.8,1.11196637]
[1743728845111,7.6586,1812.9,1812.8,1.11196637]
[1743728845302,1.4766,1812.9,1812.8,1.11196637]
[1743728845504,5.1576,1812.9,1812.8,1.11196637]
[1743728846212,6.26122,1812.9,1812.8,1.11196637]
[1743728846806,6.26122,1812.9,1812.8,0.00828637]
[1743728848009,8.76122,1812.9,1812.8,0.00828637]
[1743728848216,1.10398,1812.3,1812.2,7.07398]
[1743728848407,1.10398,1812.3,1812.2,1.10398]
[1743728848613,1.10398,1812.3,1812.2,1.10405]
[1743728848809,1.1041,1812.2,1812.1,1.10406]
[1743728849215,2.596,1812.2,1812.1,1.10406]
[1743728849415,0.75828636,1812.3,1812.2,1.10405]
[1743728849618,0.75828636,1812.3,1812.2,4.31185]
[1743728849619,0.00828636,1812.3,1812.2,4.31185]
[1743728849919,0.00828636,1812.3,1812.2,2.57035]
[1743728850710,1.38628636,1812.3,1812.2,2.57035]
[1743728851116,2.49026636,1812.3,1812.2,2.57035]
[1743728851519,2.49026636,1812.3,1812.2,1.10405]
[1743728851910,1.10405,1812.2,1812.1,6.47406]
[1743728852110,2.48205,1812.2,1812.1,6.47406]
[1743728852518,2.48205,1812.2,1812.1,5.00776]
[1743728852816,2.48205,1812.2,1812.1,4.31186]
[1743728853012,1.10411,1812.1,1812.0,0.00828637]
[1743728853218,3.29191,1812.1,1812.0,0.00828637]
[1743728854127,3.29191,1812.1,1812.0,1.11245637]
[1743728855318,3.29191,1812.1,1812.0,0.00828637]
[1743728855525,6.49971,1812.1,1812.0,0.00828637]
[1743728856023,8.99971,1812.1,1812.0,1e-08]
[1743728858126,9.09085079,1812.1,1812.0,1e-08]